[Event "Gibraltar Challengers A 2020"]
[Site "Caleta"]
[Date "2020.01.23"]
[Round "4.32"]
[White "Niharika Ch"]
[Black "Tkadlecek, Petr"]
[Result "1-0"]
[ECO "B08"]
[WhiteElo "1865"]
[BlackElo "1775"]
[Annotator "NA"]
[PlyCount "77"]
[EventDate "2020.01.20"]
[EventType "swiss"]
[EventCountry "GGB"]
[SourceTitle "playchess.com"]
[Source "ChessBase"]
[SourceQuality "1"]
[TimeControl "6600+10"]

1. e4 {[%emt 0:00:00]} c6 {[%emt 0:00:32]} 2. d4 {[%emt 0:00:00]} g6 {[%emt 0:00:19]} 3. Nc3 {[%emt 0:00:06]} Bg7 {[%emt 0:00:06]} 4. Nf3 {[%emt 0:00:08]} d6 {[%emt 0:00:17]} 5. Be3 {[%emt 0:00:14]} Nf6 {[%emt 0:00:37]} 6. h3 {[%emt 0:00:05]} O-O {[%emt 0:00:11]} 7. Qd2 {[%emt 0:00:03]} a5 {[%emt 0:01:50]} 8. a4 {[%emt 0:00:16]} Na6 {[%emt 0:01:13]} 9. Bc4 {[%emt 0:01:10] B08: Pirc Defence: Classical System} Nb4 {[%emt 0:04:19]} 10. Bb3 {[%emt 0:00:07]} b6 {[%emt 0:01:09]} 11. Rd1 $146 {[%emt 0:00:11]} ({Predecessor:} 11. O-O Ba6 12. Rfe1 Qc7 13. Bf4 Nh5 14. Bh6 Rad8 15. Bxg7 Kxg7 {1-0 (25) Pavlov,M (2371)-Belikov,V (2506) Alushta 2009}) 11... Ba6 {[%emt 0:04:55]} 12. Bh6 {[%emt 0:01:16]} e6 {[%emt 0:01:54]} 13. Qf4 {[%emt 0:05:03]} Nh5 {[%emt 0:01:34]} 14. Qg5 {[%emt 0:04:03]} (14. Qe3 $11 {remains equal.}) 14... Qxg5 {[%emt 0:02:31]} 15. Bxg5 {[%emt 0:00:21]} h6 {[%emt 0:02:15]} (15... c5 $15 16. g4 Nf6 17. dxc5 dxc5) 16. Be7 {[%emt 0:00:50] Double Attack} Rfc8 {[%emt 0:02:10]} 17. Bxd6 {[%emt 0:00:43]} Nf6 {[%emt 0:00:25]} 18. e5 {[%emt 0:06:47]} Nfd5 {[%emt 0:04:13]} 19. Ne2 {[%emt 0:12:51]} Bf8 {[%emt 0:04:41]} 20. Bxf8 {[%emt 0:00:36]} Bxe2 {[%emt 0:04:04]} 21. Kxe2 {[%emt 0:00:16]} Kxf8 {[%emt 0:00:04]} 22. Rhe1 {[%emt 0:02:49]} ({White should play} 22. c3 $16 Nf4+ 23. Kf1) 22... Nf4+ {[%emt 0:05:13]} 23. Kf1 {[%emt 0:00:05]} g5 {[%emt 0:01:15]} 24. Re4 {[%emt 0:01:25]} Kg7 {[%emt 0:09:23]} 25. h4 {[%emt 0:00:11]} Kg6 {[%emt 0:05:07]} (25... Ng6 $142 26. hxg5 h5) 26. g3 {[%emt 0:00:25]} Kf5 {[%emt 0:04:33]} (26... Nfd5 $142 27. c3 Na6 28. hxg5 hxg5) 27. Rde1 {[%emt 0:04:02]} Nh3 {[%emt 0:05:49]} 28. c3 {[%emt 0:02:52]} Nd3 {[%emt 0:03:05]} 29. Bc2 {[%emt 0:08:42]} Nhxf2 {[%emt 0:02:50]} 30. R4e3 {[%emt 0:02:11]} Kg4 {[%emt 0:06:15]} 31. Bxd3 $18 {[%emt 0:01:32]} Nxd3 {[%emt 0:05:34]} 32. Rxd3 {[%emt 0:00:04]} Kxg3 {[%emt 0:01:34]} 33. Nxg5+ {[%emt 0:02:16]} Kxh4 {[%emt 0:00:15]} 34. Nxf7 {[%emt 0:00:03]} Rf8 {[%emt 0:01:22]} 35. Re4+ {[%emt 0:00:49]} Kh5 {[%emt 0:00:43]} 36. Rf4 {[%emt 0:00:04]} Ra7 {[%emt 0:05:36]} 37. Rh3+ {[%emt 0:02:15]} Kg6 {[%emt 0:00:36]} 38. Rf6+ {[%emt 0:00:05]} Kg7 {[%emt 0:00:51]} 39. Rg3+ {[%emt 0:00:07]} 1-0

[Event "Gibraltar Challengers A 2020"]
[Site "Caleta"]
[Date "2020.01.23"]
[Round "4.33"]
[White "Garcia-Blazquez Perez, Manuel"]
[Black "Nergard, Ole-Kristian"]
[Result "1-0"]
[ECO "B76"]
[WhiteElo "1825"]
[BlackElo "1667"]
[Annotator "NA"]
[PlyCount "66"]
[EventDate "2020.01.20"]
[EventType "swiss"]
[EventCountry "GGB"]
[SourceTitle "playchess.com"]
[Source "ChessBase"]
[SourceQuality "1"]
[TimeControl "6600+10"]

1. e4 {[%emt 0:04:08]} c5 {[%emt 0:02:00]} 2. Nf3 {[%emt 0:00:05]} d6 {[%emt 0:00:08]} 3. d4 {[%emt 0:00:07]} cxd4 {[%emt 0:00:13]} 4. Nxd4 {[%emt 0:00:05]} Nf6 {[%emt 0:00:04]} 5. Nc3 {[%emt 0:00:06]} g6 {[%emt 0:00:20]} 6. Be3 {[%emt 0:00:09]} Bg7 {[%emt 0:00:22]} 7. f3 {[%emt 0:00:05]} Nc6 {[%emt 0:00:18]} 8. Qd2 {[%emt 0:00:30]} O-O {[%emt 0:00:17]} 9. O-O-O {[%emt 0:00:07]} d5 {[%emt 0:00:14]} 10. Kb1 {[%emt 0:08:18]} ({White should play} 10. exd5 $16 Nxd5 11. Nxc6 bxc6 12. Nxd5 cxd5 13. Qxd5) 10... Nxd4 {[%emt 0:07:38]} 11. e5 {[%emt 0:00:17] [#]} Nxf3 $1 {[%emt 0:04:02]} 12. gxf3 {[%emt 0:01:29] B76: Sicilian Dragon: Yugoslav Attack, 9 g4 and 9 0-0-0} Nd7 {[%emt 0:00:30]} (12... Nh5 13. Nxd5 Be6 14. Bc4 Bxe5 15. Bh6 Bg7 16. Bxg7 Nxg7 17. Qb4 Bxd5 18. Bxd5 Qc7 19. Qxb7 Rac8 20. Qxc7 Rxc7 {½-½ (45) Oskulski,J (2495)-Haugen,A (2591) ICCF email 2007}) 13. f4 {[%emt 0:05:02]} (13. Nxd5 $16 Bxe5 14. Bg5) 13... e6 {[%emt 0:02:09]} 14. Nb5 $146 {[%emt 0:00:24]} ({Predecessor:} 14. h4 h5 15. Be2 b6 16. Rdg1 Bb7 17. Bd4 Kh7 18. Bxh5 Bh6 19. Be2 Rg8 {1-0 (28) Plenca,J (2353)-Kinez,I (2098) Zagreb 2013}) 14... f6 {[%emt 0:04:18]} 15. c4 {[%emt 0:03:17]} a6 $2 {[%emt 0:06:26]} (15... fxe5 $17 16. cxd5 exf4 17. Bxf4 Nf6 18. dxe6 Bxe6) 16. cxd5 {[%emt 0:00:18]} exd5 {[%emt 0:01:28]} 17. Qxd5+ {[%emt 0:00:07]} Kh8 {[%emt 0:00:16]} 18. Na7 {[%emt 0:00:53]} Rxa7 {[%emt 0:05:53]} 19. e6 {[%emt 0:01:56]} Ra8 {[%emt 0:00:11]} 20. exd7 {[%emt 0:00:07]} Bxd7 {[%emt 0:02:21]} 21. Qxd7 {[%emt 0:00:08]} Qa5 {[%emt 0:00:33]} 22. Qd2 {[%emt 0:00:31]} Qa4 {[%emt 0:01:15]} 23. Qc2 {[%emt 0:04:55]} Qe8 {[%emt 0:00:24]} 24. Bd4 {[%emt 0:01:39]} Rc8 {[%emt 0:00:14]} 25. Qe2 {[%emt 0:01:08]} Qf7 {[%emt 0:00:22]} 26. Bg2 {[%emt 0:01:30]} b5 {[%emt 0:00:20]} 27. h4 {[%emt 0:00:10]} a5 {[%emt 0:01:05]} 28. h5 {[%emt 0:00:09]} a4 {[%emt 0:00:01]} 29. hxg6 {[%emt 0:00:16]} Qxg6+ $18 {[%emt 0:00:02]} 30. f5 {[%emt 0:07:23]} Qf7 {[%emt 0:00:01]} 31. Qh5 {[%emt 0:00:35]} Qxh5 {[%emt 0:00:30]} 32. Rxh5 {[%emt 0:00:07]} Rc4 {[%emt 0:00:29]} 33. Bd5 {[%emt 0:07:41]} Rc7 {[%emt 0:00:03]} 1-0

[Event "Gibraltar Challengers A 2020"]
[Site "Caleta"]
[Date "2020.01.23"]
[Round "4.36"]
[White "Campuzano, Franco"]
[Black "Brown, David"]
[Result "1-0"]
[ECO "C47"]
[WhiteElo "1785"]
[BlackElo "1916"]
[Annotator "NA"]
[PlyCount "119"]
[EventDate "2020.01.20"]
[EventType "swiss"]
[EventCountry "GGB"]
[SourceTitle "playchess.com"]
[Source "ChessBase"]
[SourceQuality "1"]
[TimeControl "6600+10"]

1. e4 {[%emt 0:00:00]} e5 {[%emt 0:05:44]} 2. Nf3 {[%emt 0:00:46]} Nc6 {[%emt 0:00:47]} 3. Nc3 {[%emt 0:01:50]} Nf6 {[%emt 0:00:18]} 4. g3 {[%emt 0:00:12]} d6 {[%emt 0:06:16]} 5. Bg2 {[%emt 0:03:10]} g6 {[%emt 0:06:05]} (5... Be7 6. O-O O-O 7. d3 a6 8. Ne1 b5 9. f4 Rb8 10. Nd5 exf4 11. Nxe7+ Nxe7 12. Bxf4 Nd7 13. Nf3 Bb7 14. a4 b4 15. a5 {0-1 (47) Golubov,S (2497)-Maghsoodloo,P (2501) Poprad 2016}) 6. O-O {[%emt 0:00:19] C47: Scotch Four Knights and Four Knights with 4 g3} Bg7 {[%emt 0:00:03]} 7. b3 {[%emt 0:00:44]} O-O {[%emt 0:00:20]} 8. Bb2 {[%emt 0:00:31]} h6 $146 {[%emt 0:07:01]} ({Predecessor:} 8... Be6 9. Re1 Qd7 10. Ng5 Bg4 11. f3 Be6 12. Nxe6 Qxe6 {0-1 (24) Hubert,N (957)-Zinnikus,E (776) Willingen 2017}) 9. d3 {[%emt 0:02:40]} Bg4 {[%emt 0:02:19]} 10. h3 {[%emt 0:00:16]} Be6 {[%emt 0:00:10]} 11. Ne2 {[%emt 0:03:01]} Qc8 {[%emt 0:11:48]} 12. Kh2 {[%emt 0:00:16]} Rd8 {[%emt 0:00:04]} 13. d4 {[%emt 0:01:22]} d5 {[%emt 0:01:29]} 14. Nxe5 {[%emt 0:09:43]} Nxe5 {[%emt 0:18:59]} 15. dxe5 {[%emt 0:02:26]} dxe4 {[%emt 0:00:00]} 16. Qc1 {[%emt 0:01:27]} Nd5 {[%emt 0:12:13]} 17. Nf4 {[%emt 0:01:27]} Nxf4 {[%emt 0:01:29]} 18. Qxf4 {[%emt 0:00:19]} c6 {[%emt 0:00:51]} 19. Rad1 {[%emt 0:02:20]} Rd5 {[%emt 0:02:43]} 20. Qxe4 {[%emt 0:01:48]} Ra5 {[%emt 0:04:36]} 21. a3 {[%emt 0:01:27]} Bf5 {[%emt 0:03:24] [#]} 22. Qe1 {[%emt 0:01:59]} (22. Qe2 $1 $18 {has better winning chances.}) 22... Qc7 {[%emt 0:01:04]} 23. b4 {[%emt 0:08:29]} Ra4 {[%emt 0:05:03]} 24. Qc3 {[%emt 0:12:01]} Be6 {[%emt 0:04:28]} 25. Rd2 {[%emt 0:03:35]} a5 {[%emt 0:01:05]} 26. bxa5 {[%emt 0:07:01]} R8xa5 {[%emt 0:03:10]} 27. f4 {[%emt 0:04:29]} Qb6 {[%emt 0:06:47]} 28. Rfd1 {[%emt 0:05:17]} Rc4 {[%emt 0:02:07]} 29. Qd3 {[%emt 0:01:39]} Bf8 {[%emt 0:01:11]} 30. Bc1 {[%emt 0:05:00]} Rac5 {[%emt 0:00:32]} 31. Be4 {[%emt 0:00:54]} Rc3 {[%emt 0:00:36]} 32. Qe2 {[%emt 0:00:48]} Bc4 {[%emt 0:00:41]} 33. Qg4 {[%emt 0:01:02]} h5 {[%emt 0:00:19]} 34. Qg5 {[%emt 0:00:52]} Bd5 $2 {[%emt 0:00:19]} (34... Rd5 $1 $14) 35. Bxg6 {[%emt 0:04:19]} fxg6 {[%emt 0:00:06]} 36. Qxg6+ {[%emt 0:00:08]} Bg7 {[%emt 0:00:02] [#]} 37. e6 $1 {[%emt 0:04:22]} Re3 $2 {[%emt 0:01:07]} (37... Qc7 $16 {is more resistant.}) 38. Qf7+ {[%emt 0:08:59]} Kh7 {[%emt 0:00:12]} 39. Qxh5+ {[%emt 0:03:41]} Kg8 {[%emt 0:00:02]} 40. c4 {[%emt 0:03:41]} Rxc4 {[%emt 0:00:19]} 41. Qf7+ {[%emt 0:00:24]} Kh8 {[%emt 0:00:19]} 42. Qh5+ {[%emt 0:01:24]} Kg8 {[%emt 0:00:02]} 43. Qf7+ {[%emt 0:00:48]} Kh8 {[%emt 0:00:01]} 44. Qe8+ {[%emt 0:00:09]} Kh7 {[%emt 0:00:05]} 45. Qh5+ {[%emt 0:00:05]} Kg8 {[%emt 0:00:02]} 46. Qf7+ {[%emt 0:00:17]} Kh7 {[%emt 0:00:02]} 47. f5 $2 {[%emt 0:00:08]} ({White has to play} 47. Bb2 $1 $18 {[%csl Gb2][%cal Rf7g7]} Rxg3 {[%mdl 64] Decoy} 48. Kxg3 Qe3+ 49. Kh2 Qxf4+ 50. Qxf4 Rxf4 51. Re1) 47... Rce4 $1 $11 {[%emt 0:00:28] and Black is okay.} 48. Qg6+ {[%emt 0:00:06]} (48. Rg2 Re1 49. Rxd5 R4e2 50. Qh5+ Kg8 51. Qxe2 Qg1+ 52. Rxg1 Rxe2+ 53. Rg2 Rxg2+ 54. Kxg2 cxd5) 48... Kh8 {[%emt 0:00:04]} 49. Qh5+ {[%emt 0:00:02]} Kg8 {[%emt 0:00:01]} 50. Qf7+ $2 {[%emt 0:00:14]} ({White should try} 50. Qe8+ $18 Kh7 51. Rg2 Rxe6 52. Bxe3 Rxe8 53. Bxb6) 50... Kh8 $18 {[%emt 0:00:04]} 51. Qh5+ $2 {[%emt 0:00:18]} Kg8 {[%emt 0:00:01]} 52. f6 {[%emt 0:00:13]} Bxf6 {[%emt 0:00:08]} 53. Qf7+ {[%emt 0:00:01]} Kh8 {[%emt 0:01:44]} 54. Qxf6+ {[%emt 0:00:00]} Kg8 {[%emt 0:00:00]} 55. Qf7+ {[%emt 0:00:00]} Kh8 {[%emt 0:00:00]} 56. Bb2+ {[%emt 0:00:00]} Qxb2 {[%emt 0:00:00]} 57. Rxb2 {[%emt 0:00:00]} Re2+ {[%emt 0:00:00]} 58. Rxe2 {[%emt 0:00:00]} Rxe2+ {[%emt 0:00:00]} 59. Kg1 {[%emt 0:00:00]} Rxe6 {[%emt 0:00:00]} 60. Rxd5 {[%emt 0:00:00]} 1-0

[Event "Gibraltar Challengers A 2020"]
[Site "Caleta"]
[Date "2020.01.23"]
[Round "4.37"]
[White "Kaplan, Amiram"]
[Black "Lafour, Jephte"]
[Result "1-0"]
[ECO "B01"]
[WhiteElo "1880"]
[BlackElo "1690"]
[Annotator "NA"]
[PlyCount "113"]
[EventDate "2020.01.20"]
[EventType "swiss"]
[EventCountry "GGB"]
[SourceTitle "playchess.com"]
[Source "ChessBase"]
[SourceQuality "1"]
[TimeControl "6600+10"]

1. e4 {[%emt 0:00:00]} d5 {[%emt 0:00:09]} 2. exd5 {[%emt 0:00:00]} Qxd5 {[%emt 0:00:06]} 3. Nc3 {[%emt 0:00:08]} Qd6 {[%emt 0:00:19]} 4. d4 {[%emt 0:04:18]} c6 {[%emt 0:00:07]} 5. h3 {[%emt 0:01:43]} Nf6 {[%emt 0:00:21]} 6. Nf3 {[%emt 0:00:36] B01: Scandinavian Defence} Bf5 {[%emt 0:05:37]} (6... g6 7. Ne5 Nbd7 8. Nc4 Qc7 9. Be2 Bg7 10. O-O b5 11. Nd2 O-O 12. Bf3 Bb7 13. Nde4 Rad8 {½-½ (50) Vachier Lagrave,M (2780)-Carlsen,M (2872) Moscow 2019}) 7. Bd3 {[%emt 0:02:44]} Bxd3 {[%emt 0:02:16]} 8. Qxd3 {[%emt 0:00:12]} e6 {[%emt 0:01:19]} 9. O-O {[%emt 0:00:18]} Be7 {[%emt 0:00:39]} 10. Ne2 {[%emt 0:01:59]} O-O {[%emt 0:07:41]} 11. Bf4 {[%emt 0:03:57]} Qd8 {[%emt 0:00:14]} 12. Rad1 {[%emt 0:02:14]} Nbd7 {[%emt 0:04:03]} 13. c4 $146 {[%emt 0:01:26]} ({Predecessor:} 13. Rfe1 Re8 {1-0 (27) Deissenberger,T (1923)-Klueber,W (1660) Bayern 2016}) 13... Qa5 {[%emt 0:05:49]} 14. Bd2 {[%emt 0:06:04]} Bb4 {[%emt 0:09:42]} 15. Be3 {[%emt 0:04:18]} Be7 {[%emt 0:01:56]} 16. a3 {[%emt 0:00:57]} Rfd8 {[%emt 0:06:16]} 17. b4 {[%emt 0:01:23]} Qc7 {[%emt 0:00:06]} 18. Qc2 {[%emt 0:14:08]} e5 {[%emt 0:11:33]} 19. Rfe1 {[%emt 0:03:49]} a5 {[%emt 0:03:07]} 20. dxe5 {[%emt 0:04:04]} Nxe5 {[%emt 0:02:35]} 21. Rxd8+ {[%emt 0:00:25]} Bxd8 {[%emt 0:06:04]} 22. Nfd4 {[%emt 0:03:44]} Ng6 {[%emt 0:05:15]} 23. Nc3 {[%emt 0:07:50]} ({White should play} 23. Nf5 $14) 23... axb4 {[%emt 0:01:57]} 24. axb4 {[%emt 0:00:08]} h6 {[%emt 0:11:13]} 25. Qd2 {[%emt 0:04:02]} Be7 {[%emt 0:07:15]} 26. c5 {[%emt 0:01:09]} Rd8 {[%emt 0:02:23]} 27. Qc2 {[%emt 0:05:16]} Bf8 {[%emt 0:01:28]} 28. Nf5 {[%emt 0:16:27]} Nd5 {[%emt 0:04:52]} 29. Nxd5 {[%emt 0:01:01]} Rxd5 {[%emt 0:00:11]} 30. g4 {[%emt 0:03:45]} Ne5 {[%emt 0:02:53]} 31. Kg2 {[%emt 0:01:14]} ({White should play} 31. Qe4 $11) 31... Qd7 {[%emt 0:00:44]} 32. Ra1 {[%emt 0:02:10]} ({Better is} 32. Nd4 $11) 32... Nd3 {[%emt 0:01:09]} (32... g6 $15 33. Ng3 Rd3) 33. Qc4 {[%emt 0:02:11]} (33. Qc3 $5 {[%cal Ra1a8]}) 33... Ne5 {[%emt 0:00:26]} (33... g6 $5 {[%cal Rg6f5]} 34. Nh4 Ne5 $11) 34. Qe4 {[%emt 0:00:47]} Ng6 {[%emt 0:01:26]} (34... Qd8 $11) 35. Ra8 {[%emt 0:00:26]} Re5 {[%emt 0:00:26]} 36. Qc4 {[%emt 0:04:36]} (36. Qd4 $16 Qe6 37. Nxg7 Kxg7 38. f4 {[%mdl 64] Pin}) 36... Re8 {[%emt 0:01:05]} 37. Rxe8 {[%emt 0:00:45]} Qxe8 {[%emt 0:00:03]} 38. Qd4 {[%emt 0:01:12]} Qe6 {[%emt 0:01:24]} 39. Nd6 {[%emt 0:01:08]} Bxd6 {[%emt 0:00:50]} 40. cxd6 {[%emt 0:00:45]} Ne5 {[%emt 0:00:34]} 41. Bf4 {[%emt 0:01:12]} Nd7 {[%emt 0:00:12]} 42. Qc3 {[%emt 0:01:04]} f6 {[%emt 0:00:19]} 43. b5 {[%emt 0:00:26]} Qd5+ {[%emt 0:00:14]} 44. Kg3 {[%emt 0:00:14]} (44. Kg1 $15) 44... Qxb5 {[%emt 0:00:08]} 45. Qe3 {[%emt 0:00:01]} Ne5 $2 {[%emt 0:00:30]} (45... Nf8 $15 46. Qe8 Qb3+ 47. Kh2 Qd5) 46. Bxe5 {[%emt 0:00:04]} fxe5 {[%emt 0:00:16]} 47. Qd2 {[%emt 0:00:31]} Qb6 {[%emt 0:00:24]} 48. d7 {[%emt 0:00:01]} Qd8 {[%emt 0:00:02]} 49. Qd6 {[%emt 0:00:03]} Kf7 {[%emt 0:00:01]} 50. Kf3 {[%emt 0:00:08]} c5 {[%emt 0:00:03]} 51. Ke4 {[%emt 0:00:03]} c4 {[%emt 0:00:02]} 52. Kxe5 {[%emt 0:00:06]} Qe7+ {[%emt 0:00:14]} 53. Kd5 {[%emt 0:00:07]} c3 {[%emt 0:00:26]} 54. d8=Q {[%emt 0:00:11]} Qxd8 {[%emt 0:00:24]} 55. Qxd8 {[%emt 0:00:02]} c2 {[%emt 0:00:01]} 56. Qc7+ {[%emt 0:00:01]} Kg6 {[%emt 0:00:01]} 57. Qxc2+ {[%emt 0:00:10]} 1-0

[Event "Gibraltar Challengers A 2020"]
[Site "Caleta"]
[Date "2020.01.24"]
[Round "5.13"]
[White "Ungureanu, Sandu"]
[Black "Hari Charan Sai Kalluri"]
[Result "0-1"]
[ECO "D13"]
[WhiteElo "2066"]
[BlackElo "1836"]
[Annotator "NA RC"]
[PlyCount "136"]
[EventDate "2020.01.20"]
[EventType "swiss"]
[EventCountry "GGB"]
[SourceTitle "playchess.com"]
[Source "ChessBase"]
[SourceQuality "1"]
[TimeControl "6600+10"]

1. g3 {[%emt 0:00:00]} d5 {[%emt 0:00:00]} 2. c4 {[%emt 0:00:00]} c6 {[%emt 0:00:00]} 3. cxd5 {[%emt 0:00:02]} cxd5 {[%emt 0:00:00]} 4. Bg2 {[%emt 0:00:08]} Nc6 {[%emt 0:00:03]} 5. d4 {[%emt 0:00:16]} Nf6 {[%emt 0:00:06]} 6. Nf3 {[%emt 0:00:04]} e6 {[%emt 0:00:38]} 7. O-O {[%emt 0:00:09] D13: Slav Defence: Exchange variation without ...Bf5} Be7 {[%emt 0:00:29]} 8. Bg5 {[%emt 0:00:46]} Ne4 $146 {[%emt 0:01:03]} ({Predecessor:} 8... Qb6 9. b3 Bd7 10. Nc3 Ne4 11. Na4 Qa5 12. Bxe7 Kxe7 13. a3 b6 14. Qd3 Rac8 15. Rfc1 {0-1 (71) Azmaiparashvili,Z (2673)-Bareev,E (2702) Shenyang 2000}) 9. Bxe7 {[%emt 0:00:24]} Qxe7 {[%emt 0:00:04]} 10. a3 {[%emt 0:00:56]} O-O {[%emt 0:00:23]} 11. Nbd2 {[%emt 0:01:46]} f5 {[%emt 0:04:36]} 12. e3 {[%emt 0:03:17]} Qd6 {[%emt 0:00:44]} 13. b4 {[%emt 0:00:37]} a6 {[%emt 0:01:02]} 14. Qb3 {[%emt 0:05:37]} Bd7 {[%emt 0:01:49]} 15. Qb2 {[%emt 0:00:00]} Rac8 {[%emt 0:04:45]} 16. Rac1 {[%emt 0:00:00]} h6 {[%emt 0:04:51]} 17. Rc2 {[%emt 0:01:11]} g5 {[%emt 0:05:16]} 18. Rfc1 {[%emt 0:00:59]} g4 {[%emt 0:04:11]} 19. Nxe4 {[%emt 0:03:01]} fxe4 {[%emt 0:02:06]} 20. Nd2 {[%emt 0:04:35]} h5 {[%emt 0:04:15]} 21. Nb3 {[%emt 0:00:58]} b6 {[%emt 0:00:17]} 22. Bf1 {[%emt 0:00:09]} a5 {[%emt 0:12:24]} 23. Ba6 $2 {[%emt 0:04:18]} (23. bxa5 $16 {and life is bright.} Nxa5 24. Rxc8 Bxc8 25. Nxa5 bxa5 26. Rc5) 23... Rb8 {[%emt 0:00:16]} 24. b5 {[%emt 0:04:28]} Ne7 {[%emt 0:01:55]} 25. Rc7 {[%emt 0:01:56]} Nf5 {[%emt 0:01:50]} 26. Ra7 {[%emt 0:02:54]} Rf7 {[%emt 0:13:27]} 27. Rcc7 {[%emt 0:01:48]} h4 {[%emt 0:00:27]} 28. Nc5 $1 {[%emt 0:03:18]} Rd8 {[%emt 0:00:59]} 29. Nxd7 {[%emt 0:01:25]} hxg3 {[%emt 0:08:50]} 30. hxg3 {[%emt 0:02:34]} Rfxd7 {[%emt 0:10:29]} 31. Rxd7 {[%emt 0:06:01]} Rxd7 {[%emt 0:00:18]} 32. Rxd7 {[%emt 0:02:04]} Qxd7 {[%emt 0:00:01]} 33. Qe2 {[%emt 0:00:26]} Nh6 {[%emt 0:08:38]} 34. Qc2 {[%emt 0:00:27]} Nf5 {[%emt 0:05:39]} 35. Qc6 {[%emt 0:00:30]} Qd6 {[%emt 0:00:23]} 36. a4 {[%emt 0:02:34]} Kf7 {[%emt 0:00:48]} 37. Kg2 {[%emt 0:00:26]} Qb4 {[%emt 0:04:04]} 38. Qc7+ {[%emt 0:00:49]} Kg6 {[%emt 0:01:49]} 39. Qf4 {[%emt 0:01:06]} Qxa4 {[%emt 0:00:21]} 40. Qxg4+ {[%emt 0:00:06]} Kf6 {[%emt 0:00:05]} 41. Qf4 {[%emt 0:00:11]} Qd1 {[%emt 0:04:01]} 42. Qe5+ {[%emt 0:00:48]} Ke7 {[%emt 0:00:26]} 43. Qc7+ {[%emt 0:01:50]} Kf8 {[%emt 0:00:38]} 44. Qd8+ {[%emt 0:00:22]} Kf7 {[%emt 0:00:06]} 45. Qh8 {[%emt 0:02:39]} Qf3+ {[%emt 0:00:15]} 46. Kg1 {[%emt 0:00:23]} a4 {[%emt 0:00:16]} 47. Bc8 {[%emt 0:00:22]} Ng7 {[%emt 0:00:47]} 48. Qd8 {[%emt 0:01:11]} Qd1+ {[%emt 0:00:02]} 49. Kg2 {[%emt 0:00:36]} a3 {[%emt 0:00:26]} 50. Qxb6 {[%emt 0:00:46]} Qf3+ {[%emt 0:00:22]} 51. Kg1 {[%emt 0:00:07]} Qd1+ {[%emt 0:00:20]} 52. Kh2 {[%emt 0:00:13]} Qc2 $2 {[%emt 0:00:27]} (52... Qf1 $19 {is more deadly.} 53. Qc7+ {[#]} Kg6 $1 {[%mdl 512]}) 53. Qa7+ {[%emt 0:00:42] [#]} Kg6 $1 {[%emt 0:00:11]} 54. Qxa3 {[%emt 0:00:42]} Qxf2+ {[%emt 0:00:44]} 55. Kh3 {[%emt 0:00:03]} Qf1+ {[%emt 0:00:17]} 56. Kh2 {[%emt 0:00:12]} Qe2+ {[%emt 0:00:07]} 57. Kg1 {[%emt 0:00:03] [#]} Qd1+ $19 {[%emt 0:00:19]} (57... Nf5 $142 $1 {[%mdl 512]} 58. Bxe6 Qe1+ {[%mdl 64] Double Attack} 59. Kg2 Nxe3+ 60. Qxe3 Qxe3 61. b6 Qxd4 62. Kh3 Qxb6 63. Bxd5 Kg5 64. Kg2 Kg4 65. Be6+ Qxe6 66. Kf2 e3+ 67. Ke2 Qe4 68. Kd1 Qc4 69. Ke1 Qa2 70. Kf1 Qf2#) 58. Kg2 {[%emt 0:00:41]} Qc2+ {[%emt 0:00:03]} 59. Kg1 {[%emt 0:00:20]} Qxc8 {[%emt 0:00:04]} 60. Qc5 {[%emt 0:00:15]} Qb8 {[%emt 0:00:09]} 61. b6 {[%emt 0:00:18]} Qxg3+ {[%emt 0:00:08] Double Attack} 62. Kf1 {[%emt 0:00:08]} Qf3+ {[%emt 0:00:02]} 63. Ke1 {[%emt 0:00:04]} Qxe3+ {[%emt 0:00:01]} 64. Kd1 {[%emt 0:00:07]} Qd3+ {[%emt 0:00:10]} 65. Kc1 {[%emt 0:00:05]} e3 {[%emt 0:00:37]} 66. Qc2 {[%emt 0:00:10]} Qxc2+ {[%emt 0:00:03]} 67. Kxc2 {[%emt 0:00:06]} Nf5 {[%emt 0:00:00]} 68. Kd3 {[%emt 0:00:33]} Nd6 {[%emt 0:00:01]} 0-1